bitfinex-derivatives/quotes_BNBF0:USTF0_20250305
["timestamp","ask_amount","ask_price","bid_price","bid_amount"]
[1741150431364,0.31188458,589.88,588.8,1.77205199]
[1741150431564,0.31188458,589.89,588.8,1.77205199]
[1741150431764,0.31188458,589.88,588.8,1.77205199]
[1741150431961,0.31188458,589.87,588.8,1.77205199]
[1741150432165,0.31188458,589.86,588.8,1.77205199]
[1741150432366,0.31188458,589.89,588.8,1.77205199]
[1741150432561,0.31188458,589.88,588.8,1.77205199]
[1741150432766,0.31188458,589.89,588.78,1.59102806]
[1741150432960,0.31188458,589.88,588.8,1.77205199]
[1741150433164,0.31188458,589.89,588.8,1.77205199]
[1741150433361,0.31188458,589.88,588.8,1.77205199]
[1741150433561,0.31188458,589.89,588.8,1.77205199]
[1741150433867,0.31188458,589.88,588.8,1.77205199]
[1741150434059,0.33904051,589.9,588.8,1.77205199]
[1741150434060,0.31188458,589.89,588.8,1.77205199]
[1741150435570,0.33905201,589.88,588.8,1.77205199]
[1741150435867,0.33905201,589.88,588.78,0.33968545]
[1741150435868,0.31188458,589.87,588.78,0.33968545]
[1741150436263,0.31188458,589.87,588.8,1.77208959]
[1741150437962,0.33905201,589.88,588.8,1.77208959]
[1741150438165,0.31192107,589.87,588.8,1.77208959]
[1741150438362,0.31192107,589.87,588.84,1.25134261]
[1741150439961,0.31192107,589.87,588.8,1.77208959]
[1741150439962,0.31192107,589.87,588.87,1.25134261]
[1741150443371,0.31190865,589.86,588.87,1.25134261]
[1741150443570,0.31190865,589.87,588.87,1.25134261]
[1741150444971,0.31190865,589.87,588.89,1.25134261]
[1741150446069,0.33905201,589.88,588.89,1.25134261]
[1741150446269,0.31190871,589.87,588.89,1.25134261]
[1741150447773,0.31190745,589.86,588.89,1.25134261]
[1741150447971,0.31190745,589.85,588.89,1.25134261]
[1741150448174,0.31190745,589.87,588.9,1.25134261]
[1741150448369,0.31190745,589.86,588.9,1.25134261]
[1741150448574,0.31190745,589.87,588.9,1.25134261]
[1741150448770,0.33905201,589.88,588.9,1.25134261]
[1741150448771,0.31190745,589.86,588.9,1.25134261]
[1741150449074,0.31190745,589.85,588.9,1.25134261]
[1741150449376,0.31190745,589.84,588.9,1.25134261]
[1741150449677,0.31190745,589.83,588.9,1.25134261]
[1741150449875,0.31190745,589.87,588.9,1.25134261]
[1741150450076,0.31190745,589.86,588.9,1.25134261]
[1741150450276,0.31190745,589.85,588.9,1.25134261]
[1741150450476,0.31190745,589.87,588.88,1.25134261]
[1741150450671,0.31190745,589.86,588.88,1.25134261]
[1741150450874,0.31190745,589.85,588.88,1.25134261]
[1741150451071,0.31190745,589.84,588.88,1.25134261]
[1741150451271,0.31190745,589.87,588.88,1.25134261]
[1741150453077,0.31190745,589.87,589.0,1.25134261]
[1741150455084,0.31190745,589.87,588.93,1.25134261]
[1741150456479,0.31187355,589.86,588.93,1.25134261]
[1741150456682,0.31187355,589.87,588.93,1.25134261]
[1741150456883,0.31187355,589.86,588.93,1.25134261]
[1741150457080,0.31187355,589.87,588.93,1.25134261]
[1741150457382,0.31187355,589.87,588.91,1.77183395]
[1741150458683,0.31187355,589.87,588.9,1.25134261]
[1741150459887,0.31187355,589.87,588.96,1.25134261]
[1741150460893,0.31187355,589.86,588.96,1.25134261]
[1741150461091,0.31187355,589.85,588.96,1.25134261]
[1741150461291,0.33905201,589.88,588.96,1.25134261]
[1741150461292,0.31187355,589.84,588.96,1.25134261]
[1741150461487,0.31187355,589.83,588.96,1.25134261]
[1741150461688,0.31187355,589.82,588.92,1.25134261]
[1741150461886,0.31187355,589.81,588.92,1.25134261]
[1741150462094,0.31187355,589.8,588.92,1.25134261]
[1741150462295,0.31187355,589.79,588.92,1.25134261]
[1741150462492,0.31187355,589.78,588.92,1.25134261]
[1741150462697,0.31187355,589.77,588.92,1.25134261]
[1741150462896,0.31187355,589.76,588.92,1.25134261]
[1741150463194,0.33905201,589.88,588.92,1.25134261]
[1741150463395,0.31190538,589.87,588.93,1.25134261]
[1741150464997,1.98096752,589.87,588.93,1.25134261]
[1741150465191,0.31190538,589.86,588.93,1.25134261]
[1741150465996,4.15289275,589.86,588.97,1.25134261]
[1741150466194,2.94851964,589.85,588.97,1.25134261]
[1741150466394,1.98263698,589.84,588.97,1.25134261]
[1741150466596,0.31190538,589.83,588.97,1.25134261]
[1741150467397,1.2794575,589.83,588.97,1.25134261]
[1741150467698,0.31190538,589.82,588.97,1.25134261]
[1741150468000,0.31190538,589.81,588.97,1.25134261]
[1741150468196,0.31190538,589.85,588.97,1.25134261]
[1741150468396,0.31190538,589.84,588.97,1.25134261]
[1741150468592,0.31190538,589.83,588.97,1.25134261]
[1741150468798,0.31190538,589.85,588.97,1.25134261]
[1741150469096,0.31188852,589.84,588.97,1.25134261]
[1741150469290,1.28118309,589.86,588.97,1.25134261]
[1741150469492,0.31188852,589.85,588.97,1.25134261]
[1741150469896,4.50336523,589.86,588.97,1.25134261]
[1741150470097,1.98306595,589.85,588.97,1.25134261]
[1741150470299,0.31188852,589.84,588.97,1.25134261]
[1741150470598,0.31188852,589.84,588.96,1.25134261]
[1741150470998,1.98306595,589.87,588.96,1.25134261]
[1741150471199,0.31188852,589.86,588.96,1.25134261]
[1741150471608,5.70783811,589.86,588.96,1.25134261]
[1741150471898,4.503465,589.85,588.96,1.25134261]
[1741150472098,1.98306595,589.84,588.96,1.25134261]
[1741150472301,0.31188852,589.83,588.96,1.25134261]
[1741150472503,1.98306595,589.83,588.96,1.25134261]
[1741150472700,0.31188852,589.82,588.96,1.25134261]
[1741150472901,0.31188852,589.82,588.95,1.25134261]
[1741150473100,4.503465,589.82,588.95,1.25134261]
[1741150473298,1.98306595,589.81,588.95,1.25134261]
[1741150473503,5.39594959,589.81,588.95,1.25134261]
[1741150473704,4.50353396,589.8,588.95,1.25134261]
[1741150473902,1.98313491,589.79,588.95,1.25134261]
[1741150474206,0.31195748,589.78,588.95,1.25134261]
[1741150474401,3.18784168,589.78,588.95,1.25134261]
[1741150474699,2.83292476,589.77,588.95,1.25134261]
[1741150475001,1.98346857,589.76,588.84,1.25134261]
[1741150475202,0.31195748,589.75,588.84,1.25134261]
[1741150475403,0.31195057,589.74,588.84,1.25134261]
[1741150475603,0.31195057,589.73,588.84,1.25134261]
[1741150475805,0.31195057,589.72,588.84,1.25134261]
[1741150476005,4.50442894,589.75,588.84,1.25134261]
[1741150476305,1.98346166,589.74,588.84,1.25134261]
[1741150476606,0.31195057,589.73,588.84,1.25134261]
[1741150476798,1.28155337,589.73,588.84,1.25134261]
[1741150477003,0.31195057,589.72,588.84,1.25134261]
[1741150477199,0.31195057,589.71,588.84,1.25134261]
[1741150477399,0.31195057,589.7,588.84,1.25134261]
[1741150477603,1.98346166,589.84,588.84,1.25134261]
[1741150477804,0.31195057,589.83,588.84,1.25134261]
[1741150478204,1.98346166,589.83,588.84,1.25134261]
[1741150478406,0.31195057,589.82,588.84,1.25134261]
[1741150478605,1.98346166,589.82,588.84,1.25134261]
[1741150478806,0.31195057,589.81,588.84,1.25134261]
[1741150479005,0.31195057,589.81,588.78,0.33968545]
[1741150479006,0.31195057,589.81,588.83,1.25134261]
[1741150479203,0.33909799,589.8,588.83,1.25134261]
[1741150479408,0.31195057,589.79,588.83,1.25134261]
[1741150479708,0.33910949,589.78,588.83,1.25134261]
[1741150480007,0.31195057,589.77,588.83,1.25134261]
[1741150480509,2.88163288,589.77,588.83,1.25134261]
[1741150480809,1.28154184,589.76,588.83,1.25134261]
[1741150481005,0.31193904,589.75,588.82,1.25134261]
[1741150483107,0.31193904,589.75,588.84,1.25134261]
[1741150484413,0.31193904,589.74,588.84,1.25134261]
[1741150484613,0.31193904,589.77,588.84,1.25134261]
[1741150485416,0.31193904,589.77,588.87,1.25134261]
[1741150487419,0.31189187,589.76,588.87,1.25134261]
[1741150487711,0.31189187,589.75,588.87,1.25134261]
[1741150487919,0.31189187,589.74,588.87,1.25134261]
[1741150488113,0.31189187,589.73,588.87,1.25134261]
[1741150488312,0.31189187,589.77,588.88,1.25134261]
[1741150488514,0.31189187,589.76,588.88,1.25134261]
[1741150488817,0.31189187,589.75,588.88,1.25134261]
[1741150489016,0.31189187,589.77,588.88,1.25134261]
[1741150490319,0.31189187,589.77,588.84,1.77208207]
[1741150490320,0.31189187,589.77,588.89,1.25134261]
[1741150492514,0.33910949,589.78,588.94,1.25134261]
[1741150492812,0.31188862,589.77,588.94,1.25134261]
[1741150494417,0.31188862,589.77,588.95,1.25134261]
[1741150497327,1.28102563,589.77,588.91,1.25134261]
[1741150497528,0.31188862,589.76,588.91,1.25134261]
[1741150498026,0.31188862,589.77,588.91,1.25134261]
[1741150499829,0.31188862,589.77,588.92,1.25134261]
[1741150501835,0.31188862,589.77,588.89,1.25134261]
[1741150504935,0.31188862,589.77,588.85,1.25134261]
[1741150507039,0.31188862,589.77,588.87,1.25134261]
[1741150508538,0.33910949,589.78,588.87,1.25134261]
[1741150508741,1.54886612,589.78,588.87,1.25134261]
[1741150509542,0.33910949,589.78,588.87,1.25134261]
[1741150510142,0.33910949,589.78,588.81,1.77214975]
[1741150510737,0.33910949,589.78,588.78,0.33968545]
[1741150511144,0.33910949,589.78,588.81,1.77194672]
[1741150513840,0.33910949,589.78,588.78,0.33968545]
[1741150517147,0.33910949,589.78,588.79,1.77202943]
[1741150518348,0.31189521,589.77,588.79,1.77202943]
[1741150519849,0.31189521,589.77,588.78,0.33968545]
[1741150520049,0.31189521,589.77,588.85,1.25134261]
[1741150522250,0.33910949,589.78,588.85,1.25134261]
[1741150525251,0.33910949,589.78,588.88,1.25134261]
[1741150528656,0.33910949,589.78,588.97,1.25134261]
[1741150531955,0.31184315,589.77,588.97,1.25134261]
[1741150534050,0.31184315,589.77,588.95,1.25134261]
[1741150535156,0.31184256,589.76,588.95,1.25134261]
[1741150535350,0.31184256,589.77,588.95,1.25134261]
[1741150535556,0.31184256,589.76,588.95,1.25134261]
[1741150535756,0.31184256,589.77,588.95,1.25134261]
[1741150535957,0.31184256,589.76,588.95,1.25134261]
[1741150536256,0.31184256,589.75,588.95,1.25134261]
[1741150536456,0.31184256,589.77,588.95,1.25134261]
[1741150536653,0.31184256,589.76,588.95,1.25134261]
[1741150536852,0.33910949,589.78,588.95,1.25134261]
[1741150537058,0.31185506,589.77,588.95,1.25134261]
[1741150538457,0.31185506,589.77,588.96,1.25134261]
[1741150540766,0.31185506,589.77,588.98,1.25134261]
[1741150542062,0.31185803,589.76,588.98,1.25134261]
[1741150542267,0.31185803,589.75,588.98,1.25134261]
[1741150542461,0.31185803,589.74,588.98,1.25134261]
[1741150542663,0.31185803,589.77,588.98,1.25134261]
[1741150542966,0.31185803,589.76,588.98,1.25134261]
[1741150543266,0.31185803,589.75,588.98,1.25134261]
[1741150543467,0.31185803,589.77,588.98,1.25134261]
[1741150543669,0.31185803,589.76,588.98,1.25134261]
[1741150543862,0.31185803,589.77,588.98,1.25134261]
[1741150544063,0.31185803,589.76,588.98,1.25134261]
[1741150544266,0.31185803,589.75,588.98,1.25134261]
[1741150544472,0.31185803,589.74,588.98,1.25134261]
[1741150544668,0.31185803,589.73,588.98,1.25134261]
[1741150544865,0.33910949,589.78,588.98,1.25134261]
[1741150544866,0.31185803,589.77,588.98,1.25134261]
[1741150545069,0.31185803,589.76,588.98,1.25134261]
[1741150545364,0.31185803,589.75,588.98,1.25134261]
[1741150545570,0.31185803,589.77,588.98,1.25134261]
[1741150545771,0.31185803,589.76,588.98,1.25134261]
[1741150546070,0.33910949,589.78,588.98,1.25134261]
[1741150546071,0.31185803,589.75,588.98,1.25134261]
[1741150546270,0.31185803,589.77,588.98,1.25134261]
[1741150546466,0.31185803,589.76,588.98,1.25134261]
[1741150546674,0.31185803,589.75,589.02,1.25134261]
[1741150546871,0.31185803,589.77,589.02,1.25134261]
[1741150547072,0.31185803,589.76,589.02,1.25134261]
[1741150547270,0.31185803,589.77,589.02,1.25134261]
[1741150548867,0.31184796,589.76,589.02,1.25134261]
[1741150549072,0.31184796,589.77,589.02,1.25134261]
[1741150549373,0.31184796,589.76,589.06,1.25134261]
[1741150549569,0.31184796,589.77,589.06,1.25134261]
[1741150554074,0.31184796,589.77,589.05,1.25134261]
[1741150555682,0.31186501,589.76,589.05,1.25134261]
[1741150555881,0.31186501,589.75,589.05,1.25134261]
[1741150556083,0.31186501,589.74,589.05,1.25134261]
[1741150556283,0.31186501,589.77,589.05,1.25134261]
[1741150556482,0.33910949,589.78,589.05,1.25134261]
[1741150556483,0.31186501,589.76,589.05,1.25134261]
[1741150556784,0.31186501,589.75,589.05,1.25134261]
[1741150557085,0.31186501,589.74,589.05,1.25134261]
[1741150557285,0.31186501,589.77,589.05,1.25134261]
[1741150557482,0.31186501,589.76,589.05,1.25134261]
[1741150557679,0.31186501,589.77,589.05,1.25134261]
[1741150557987,0.31186501,589.76,589.08,1.25134261]
[1741150558183,0.31186501,589.77,589.08,1.25134261]
[1741150558379,0.31186501,589.76,589.08,1.25134261]
[1741150558585,0.31186501,589.77,589.08,1.25134261]
[1741150558784,0.31186501,589.76,589.08,1.25134261]
[1741150558983,0.31186501,589.77,589.08,1.25134261]
[1741150559183,0.31188871,589.76,589.08,1.25134261]
[1741150559478,0.31188871,589.75,589.08,1.25134261]
[1741150559677,0.33910949,589.78,589.08,1.25134261]
[1741150559678,0.31188871,589.77,589.08,1.25134261]
[1741150559882,0.31188871,589.76,589.08,1.25134261]
[1741150560081,0.31188871,589.77,589.08,1.25134261]
[1741150560278,0.31188871,589.76,589.08,1.25134261]
[1741150560480,0.31188871,589.75,589.03,1.25134261]
[1741150560678,0.33910949,589.78,589.03,1.25134261]
[1741150560883,0.31190122,589.77,589.03,1.25134261]
[1741150563881,0.31190122,589.77,589.01,1.25134261]
[1741150566385,0.31190122,589.77,589.03,1.25134261]
[1741150568388,0.31190122,589.77,589.04,1.25134261]
[1741150570593,0.33910949,589.78,589.04,1.25134261]
[1741150570793,0.31185612,589.77,589.04,1.25134261]
[1741150570997,0.31185612,589.77,588.92,1.25134261]
[1741150571192,0.33910949,589.78,588.92,1.25134261]
[1741150573403,0.33910949,589.78,589.04,1.25134261]
[1741150576103,0.33910949,589.78,589.06,1.25134261]
[1741150577100,0.31185239,589.77,589.06,1.25134261]
[1741150577905,0.31185239,589.77,589.07,1.25134261]
[1741150579102,0.33910949,589.78,589.07,1.25134261]
[1741150579308,0.31185003,589.77,589.07,1.25134261]
[1741150580713,0.33910949,589.78,589.07,1.25134261]
[1741150580913,0.31184895,589.77,589.07,1.25134261]
[1741150582512,0.33910949,589.78,589.07,1.25134261]
[1741150582813,0.33910949,589.78,588.87,1.52699394]
[1741150582814,0.31184824,589.77,589.08,1.25134261]
[1741150585013,0.31184824,589.77,588.98,1.25134261]
[1741150587714,0.31190291,589.76,588.91,1.25134261]
[1741150587914,0.31190291,589.75,588.91,1.25134261]
[1741150588111,0.31190291,589.74,588.91,1.25134261]
[1741150588316,0.31190291,589.73,588.91,1.25134261]
[1741150588615,0.33910949,589.78,588.91,1.25134261]
[1741150588616,0.31190291,589.72,588.91,1.25134261]
[1741150588815,0.31190291,589.77,588.91,1.25134261]
[1741150589016,0.31190291,589.76,588.91,1.25134261]
[1741150589212,0.31190291,589.75,588.91,1.25134261]
[1741150589411,0.31190291,589.74,588.91,1.25134261]
[1741150589614,0.31190291,589.73,588.91,1.25134261]
[1741150589916,0.31190291,589.72,588.91,1.25134261]
[1741150590111,0.31190291,589.71,588.93,1.25134261]
[1741150590316,0.31190291,589.7,588.93,1.25134261]
[1741150590519,0.31190291,589.69,588.93,1.25134261]
[1741150590714,0.31190291,589.68,588.93,1.25134261]
[1741150590918,0.33910949,589.78,588.93,1.25134261]
[1741150590919,0.31189786,589.67,588.93,1.25134261]
[1741150591117,0.31189786,589.66,588.93,1.25134261]
[1741150591417,0.31189786,589.65,588.93,1.25134261]
[1741150591619,0.33910949,589.78,588.89,1.77202943]
[1741150591818,0.31189336,589.77,588.88,1.25134261]
[1741150592614,0.33910949,589.78,588.88,1.25134261]
[1741150592818,0.31189777,589.77,588.88,1.25134261]
[1741150593719,0.31189777,589.77,588.87,1.25134261]
[1741150594320,0.3118928,589.76,588.87,1.25134261]
[1741150594522,0.3118928,589.75,588.87,1.25134261]
[1741150594715,0.3118928,589.74,588.87,1.25134261]
[1741150595018,0.3118928,589.73,588.87,3.0234322]
[1741150595219,0.3118928,589.77,588.97,1.25134261]
[1741150595519,0.3118928,589.76,588.97,1.25134261]
[1741150595714,0.3118928,589.75,588.97,1.25134261]
[1741150595914,0.3118928,589.77,588.97,1.25134261]
[1741150596114,0.3118928,589.76,588.97,1.25134261]
[1741150596417,0.3118928,589.75,588.97,1.25134261]
[1741150596613,0.3118928,589.77,588.97,1.25134261]
[1741150596817,0.3118928,589.76,588.97,1.25134261]
[1741150597017,0.3118928,589.77,588.95,1.25134261]
[1741150597214,0.3118928,589.76,588.95,1.25134261]
[1741150597421,0.3118928,589.75,588.95,1.25134261]
[1741150597721,0.3118928,589.74,588.95,1.25134261]
[1741150597920,0.3118928,589.73,588.95,1.25134261]
[1741150598120,0.3118928,589.72,588.95,1.25134261]
[1741150598321,0.3118928,589.71,588.95,1.25134261]
[1741150598525,0.3118928,589.7,588.95,1.25134261]
[1741150598715,0.3118928,589.77,588.96,1.25134261]
[1741150598921,0.33910949,589.78,588.96,1.25134261]
[1741150598922,0.3118928,589.76,588.96,1.25134261]
[1741150599121,0.3118928,589.75,588.96,1.25134261]
[1741150599317,0.3118928,589.74,588.96,1.25134261]
[1741150599521,0.3118928,589.77,588.96,1.25134261]
[1741150599723,0.3118928,589.76,588.96,1.25134261]
[1741150600025,0.3118928,589.75,588.96,1.25134261]
[1741150600223,0.3118928,589.77,588.96,1.25134261]
[1741150600523,0.3118928,589.76,588.96,1.25134261]
[1741150600822,0.3118928,589.75,588.95,1.25134261]
[1741150601022,0.31189024,589.74,588.95,1.25134261]
[1741150601217,0.31189024,589.77,588.95,1.25134261]
[1741150601424,0.31189024,589.76,588.95,1.25134261]
[1741150601618,0.31189024,589.75,588.95,1.25134261]
[1741150601823,0.31189024,589.77,588.95,1.25134261]
[1741150602017,0.31189024,589.76,588.95,1.25134261]
[1741150602218,0.31189024,589.77,588.95,1.25134261]
[1741150602618,0.31189024,589.77,588.96,1.25134261]
[1741150602822,0.31189502,589.76,588.96,1.25134261]
[1741150603023,0.33910949,589.78,588.96,1.25134261]
[1741150603024,0.31189502,589.77,588.96,1.25134261]
[1741150603226,0.31189502,589.76,588.96,1.25134261]
[1741150603520,0.31189502,589.75,588.96,1.25134261]
[1741150603726,0.31189502,589.74,588.96,1.25134261]
[1741150603927,0.31189502,589.77,588.96,1.25134261]
[1741150604226,0.31189502,589.76,588.96,1.25134261]
[1741150604526,0.33910949,589.78,588.87,1.77202191]
[1741150604527,0.31189202,589.75,588.95,1.25134261]
[1741150604826,0.31189202,589.74,588.95,1.25134261]
[1741150605123,0.31189202,589.73,588.95,1.25134261]
[1741150605325,0.31189202,589.72,588.95,1.25134261]
[1741150605525,0.31189202,589.71,588.95,1.25134261]
[1741150605722,0.31189202,589.77,588.95,1.25134261]
[1741150605926,0.31189202,589.76,588.95,1.25134261]
[1741150606222,0.31189202,589.75,588.95,1.25134261]
[1741150606422,0.33910949,589.78,588.95,1.25134261]
[1741150606423,0.31189202,589.77,588.95,1.25134261]
[1741150606626,0.31189202,589.76,588.95,1.25134261]
[1741150606927,0.31189202,589.75,588.96,1.25134261]
[1741150607128,0.31189202,589.77,588.96,1.25134261]
[1741150607427,0.31189202,589.76,588.96,1.25134261]
[1741150607629,0.31189202,589.77,588.96,1.25134261]
[1741150607828,0.31189202,589.76,588.96,1.25134261]
[1741150608028,0.31189202,589.75,588.96,1.25134261]
[1741150608221,0.31189202,589.74,588.96,1.25134261]
[1741150608424,0.33910949,589.78,588.96,1.25134261]
[1741150608425,0.31189202,589.73,588.96,1.25134261]
[1741150608625,0.31189202,589.77,588.96,1.25134261]
[1741150608821,0.31189202,589.76,588.96,1.25134261]
[1741150609030,0.31189202,589.77,588.98,1.25134261]
[1741150609328,0.31189202,589.76,588.98,1.25134261]
[1741150609530,0.31189202,589.77,588.98,1.25134261]
[1741150609725,0.31189202,589.76,588.98,1.25134261]
[1741150609921,0.31189202,589.77,588.98,1.25134261]
[1741150610132,0.31189202,589.76,588.98,1.25134261]
[1741150610327,0.31189202,589.77,588.98,1.25134261]
[1741150610527,0.31189202,589.76,588.98,1.25134261]
[1741150610728,0.31189202,589.75,588.98,1.25134261]
[1741150611023,0.31189202,589.74,588.98,1.25134261]
[1741150611328,0.31185806,589.73,588.98,1.25134261]
[1741150611529,0.31185806,589.72,588.98,1.25134261]
[1741150611829,0.33910949,589.78,588.98,1.25134261]
[1741150611830,0.31185806,589.71,589.05,1.25134261]
[1741150612027,0.31185806,589.7,589.05,1.25134261]
[1741150612226,0.33910949,589.78,589.05,1.25134261]
[1741150612429,0.31185844,589.77,589.05,1.25134261]
[1741150615026,0.31185844,589.77,589.06,1.25134261]
[1741150617133,0.31185844,589.77,589.07,1.25134261]
[1741150619236,0.31185844,589.77,589.06,1.25134261]
[1741150621637,0.31185844,589.77,589.05,1.25134261]
[1741150623745,0.31185844,589.77,589.02,1.25134261]
[1741150625946,0.31187824,589.76,589.02,1.25134261]
[1741150626244,0.31187824,589.75,589.02,1.25134261]
[1741150626445,0.31187824,589.74,589.02,1.25134261]
[1741150626647,0.31187824,589.77,589.02,1.25134261]
[1741150626945,0.31187824,589.76,589.02,1.25134261]
[1741150627145,0.31187824,589.77,589.02,1.25134261]
[1741150627646,0.33910949,589.78,589.0,1.25134261]
[1741150627947,0.31187874,589.77,589.0,1.25134261]
[1741150631047,0.31187632,589.76,589.0,1.25134261]
[1741150631447,0.31187632,589.75,589.0,1.25134261]
[1741150631646,0.33910949,589.78,589.0,1.25134261]
[1741150631947,0.31187499,589.77,589.0,1.25134261]
[1741150632749,0.31187499,589.77,589.02,1.25134261]
[1741150634449,0.31185646,589.76,589.02,1.25134261]
[1741150634650,0.31185646,589.75,589.02,1.25134261]
[1741150634952,0.31185646,589.74,589.02,1.25134261]
[1741150635147,0.31185646,589.77,589.02,1.25134261]
[1741150635356,0.31185646,589.77,588.94,1.27249495]
[1741150635357,0.33910949,589.78,589.06,1.25134261]
[1741150635554,1.21081874,589.88,589.06,1.25134261]
[1741150635756,1.01642904,590.21,589.06,1.25134261]
[1741150635958,0.65067179,590.2,589.06,1.25134261]
[1741150636160,0.65067753,590.19,589.06,1.25134261]
[1741150636362,0.31180361,590.18,589.06,1.25134261]
[1741150637965,0.31180361,590.18,589.18,1.25134261]
[1741150640065,0.31180361,590.18,589.26,1.25134261]
[1741150641863,0.31180361,590.18,589.21,1.25134261]
[1741150643866,0.31180361,590.18,588.97,1.77124776]
[1741150643867,0.31180361,590.18,589.17,1.25134261]
[1741150645763,0.31180361,590.18,589.08,1.25134261]
[1741150646165,0.33887392,590.19,589.08,1.25134261]
[1741150646369,0.31166807,590.18,589.08,1.25134261]
[1741150648766,0.31166807,590.18,589.04,1.25134261]
[1741150648966,0.31166807,590.18,589.05,0.33952975]
[1741150649570,0.31167594,590.17,589.05,0.33952975]
[1741150649772,0.31167594,590.18,589.05,0.33952975]
[1741150649970,0.31167594,590.17,589.05,0.33952975]
[1741150650170,0.31167594,590.18,589.05,0.33952975]
[1741150650371,0.31167594,590.17,589.05,0.33952975]
[1741150650572,0.31167594,590.16,589.05,0.33952975]
[1741150650771,0.31167594,590.18,589.05,0.33952975]
[1741150650972,0.31167594,590.17,589.05,0.33952975]
[1741150651171,0.31167594,590.18,589.05,0.33952975]
[1741150656175,0.31174462,590.17,589.05,0.33952975]
[1741150656376,0.31174462,590.16,589.05,0.33952975]
[1741150656675,0.31174462,590.15,589.05,0.33952975]
[1741150656867,0.31174462,590.14,589.05,0.33952975]
[1741150657069,0.31174462,590.13,589.05,0.33952975]
[1741150657374,0.31174462,590.12,589.05,0.33952975]
[1741150657576,0.31174462,590.11,589.05,0.33952975]
[1741150657774,0.31174462,590.18,589.05,0.33952975]
[1741150657974,0.31174462,590.17,589.05,0.33952975]
[1741150658176,0.31174462,590.16,589.05,0.33952975]
[1741150658483,0.31174462,590.15,589.05,0.33952975]
[1741150658775,0.31174462,590.14,589.05,0.33952975]
[1741150658978,0.33887392,590.19,589.05,0.33952975]
[1741150658979,0.31174462,590.13,589.05,0.33952975]
[1741150659175,0.31174462,590.12,589.05,0.33952975]
[1741150659372,0.31174462,590.18,589.05,0.33952975]
[1741150659577,0.31174462,590.17,589.05,0.33952975]
[1741150659778,0.31174462,590.16,589.05,0.33952975]
[1741150659978,0.31174462,590.18,589.05,0.33952975]
[1741150660178,0.31174462,590.17,589.05,0.33952975]
[1741150660374,0.31174462,590.16,589.05,0.33952975]
[1741150660576,0.31174462,590.15,589.05,0.33952975]
[1741150660776,0.31174462,590.18,589.05,0.33952975]
[1741150660976,0.31174462,590.17,589.05,0.33952975]
[1741150661178,0.31172664,590.16,589.05,0.33952975]
[1741150661374,0.31172664,590.18,589.05,0.33952975]
[1741150661574,0.31172664,590.17,589.05,0.33952975]
[1741150661781,0.31172664,590.18,589.05,0.33952975]
[1741150663178,0.31173283,590.17,589.05,0.33952975]
[1741150663374,0.31173283,590.18,589.05,0.33952975]
[1741150664483,0.33887392,590.19,589.05,0.33952975]
[1741150664781,0.31173924,590.18,589.05,0.33952975]
[1741150668481,0.65062464,590.17,589.05,0.33952975]
[1741150668785,2.86142471,590.67,589.05,0.33952975]
[1741150668786,0.65063038,590.16,589.05,0.33952975]
[1741150668979,0.65063613,590.15,589.05,0.33952975]
[1741150669285,0.31173924,590.14,589.06,1.25134261]
[1741150671387,0.31173924,590.14,589.05,2.11082259]
[1741150671388,0.31173924,590.14,589.09,1.25134261]
[1741150671783,0.33890837,590.13,589.09,1.25134261]
[1741150671978,0.31173924,590.12,589.09,1.25134261]
[1741150672184,0.33891986,590.11,589.09,1.25134261]
[1741150672384,0.31173924,590.1,589.09,1.25134261]
[1741150672686,0.33893134,590.09,589.09,1.25134261]
[1741150672880,0.31173924,590.08,589.09,1.25134261]
[1741150674282,0.65067633,590.08,589.09,1.25134261]
[1741150674588,0.31173924,590.07,589.09,1.25134261]
[1741150674789,0.31180106,590.06,589.09,1.25134261]
[1741150674982,0.31180106,590.07,589.09,1.25134261]
[1741150675182,0.31180106,590.06,589.09,1.25134261]
[1741150675383,0.31180106,590.05,589.09,1.25134261]
[1741150675588,0.31180106,590.04,589.09,1.25134261]
[1741150675783,0.33893709,590.08,589.05,2.11082259]
[1741150675784,0.31180106,590.03,589.05,2.11082259]
[1741150675990,0.31180106,590.02,589.05,0.33952975]
[1741150676289,0.31180106,590.01,589.05,0.33952975]
[1741150676491,0.31180106,590.07,589.05,0.33952975]
[1741150677092,2.11054951,590.06,589.05,0.33952975]
[1741150677390,0.65075538,590.05,589.0,1.25134261]
[1741150677588,0.31180106,590.04,589.0,1.25134261]
[1741150677786,0.33896581,590.03,589.0,1.25134261]
[1741150677999,0.31180106,590.02,589.0,1.25134261]
[1741150678190,0.3389773,590.01,589.0,1.25134261]
[1741150678485,0.31180106,590.0,589.0,1.25134261]
[1741150678690,0.33898879,589.99,589.0,1.25134261]
[1741150678889,0.31180106,589.98,589.0,1.25134261]
[1741150680887,0.31180106,589.98,588.96,1.25134261]
[1741150681293,0.3118182,589.97,588.96,1.25134261]
[1741150681488,0.3118182,589.96,588.96,1.25134261]
[1741150681694,0.3118182,589.95,588.96,1.25134261]
[1741150681886,0.3118182,589.94,588.96,1.25134261]
[1741150682090,0.3118182,589.93,588.96,1.25134261]
[1741150682291,0.3118182,589.92,588.96,1.25134261]
[1741150682593,0.3118182,589.91,588.96,1.25134261]
[1741150682788,0.3118182,589.98,588.96,1.25134261]
[1741150682986,0.31182333,589.97,588.96,1.25134261]